{"text_format":"3","workbook":"xlsx","n_sheets":1,"sheets":["Seznam výpůjček z knihovny"],"not_rendered":{"defined_names":4},"read":"whole","date_system":"1900"}

{"sheet":"Seznam výpůjček z knihovny","index":0,"n_rows":9,"n_cols":8,"rows_kept":9,"merged":[[0,1,0,4],[0,5,0,6]]}
[null,"Seznam výpůjček z knihovny",{"$nulls":3},"DÉLKA VÝPŮJČNÍ LHŮTY (DNY): ",null,10]
["Překročena výpůjční lhůta","STUDENT","KONTAKTNÍ E-MAIL","KONTAKTNÍ TELEFON","NÁZEV KNIHY","DATUM VYPŮJČENÍ","DATUM VRÁCENÍ","DNY"]
[{"$f":"IFERROR(((Knihy[[#This Row],[DATUM VYPŮJČENÍ]]+PočetDnů)<TODAY())*(LEN(Knihy[[#This Row],[DATUM VRÁCENÍ]])=0)*(LEN(Knihy[[#This Row],[DATUM VYPŮJČENÍ]])>0),0)","v":0},"Marie Marková","adresa@example.com","555 010 000","Uprostřed hlubokých lesů a mezi Indiány",{"$f":"DATE(YEAR(TODAY()),1,14)","v":"2018-01-14"},{"$f":"DATE(YEAR(TODAY()),1,21)","v":"2018-01-21"},{"$f":"IFERROR(IF(Knihy[[#This Row],[DATUM VRÁCENÍ]]=\"\",IF(Knihy[[#This Row],[DATUM VYPŮJČENÍ]]<>\"\", TODAY()-Knihy[[#This Row],[DATUM VYPŮJČENÍ]],\"\"),Knihy[[#This Row],[DATUM VRÁCENÍ]]-Knihy[[#This Row],[DATUM VYPŮJČENÍ]]), \"\")","v":7}]
[{"$f":"IFERROR(((Knihy[[#This Row],[DATUM VYPŮJČENÍ]]+PočetDnů)<TODAY())*(LEN(Knihy[[#This Row],[DATUM VRÁCENÍ]])=0)*(LEN(Knihy[[#This Row],[DATUM VYPŮJČENÍ]])>0),0)","v":0},"Rudolf Spousta","adresa@example.com","555 010 100","Šarlotina pavučinka",{"$f":"DATE(YEAR(TODAY()),2,15)","v":"2018-02-15"},{"$f":"DATE(YEAR(TODAY()),2,18)","v":"2018-02-18"},{"$f":"IFERROR(IF(Knihy[[#This Row],[DATUM VRÁCENÍ]]=\"\",IF(Knihy[[#This Row],[DATUM VYPŮJČENÍ]]<>\"\", TODAY()-Knihy[[#This Row],[DATUM VYPŮJČENÍ]],\"\"),Knihy[[#This Row],[DATUM VRÁCENÍ]]-Knihy[[#This Row],[DATUM VYPŮJČENÍ]]), \"\")","v":3}]
[{"$f":"IFERROR(((Knihy[[#This Row],[DATUM VYPŮJČENÍ]]+PočetDnů)<TODAY())*(LEN(Knihy[[#This Row],[DATUM VRÁCENÍ]])=0)*(LEN(Knihy[[#This Row],[DATUM VYPŮJČENÍ]])>0),0)","v":0},"Karel Hovorka","adresa@example.com","555 010 200","Podivuhodná výprava z pokoje až na kraj světa",{"$f":"DATE(YEAR(TODAY()),2,17)","v":"2018-02-17"},{"$f":"DATE(YEAR(TODAY()),2,22)","v":"2018-02-22"},{"$f":"IFERROR(IF(Knihy[[#This Row],[DATUM VRÁCENÍ]]=\"\",IF(Knihy[[#This Row],[DATUM VYPŮJČENÍ]]<>\"\", TODAY()-Knihy[[#This Row],[DATUM VYPŮJČENÍ]],\"\"),Knihy[[#This Row],[DATUM VRÁCENÍ]]-Knihy[[#This Row],[DATUM VYPŮJČENÍ]]), \"\")","v":5}]
[{"$f":"IFERROR(((Knihy[[#This Row],[DATUM VYPŮJČENÍ]]+PočetDnů)<TODAY())*(LEN(Knihy[[#This Row],[DATUM VRÁCENÍ]])=0)*(LEN(Knihy[[#This Row],[DATUM VYPŮJČENÍ]])>0),0)","v":0},"Jakub Lukeš","adresa@example.com","555 010 300","Rychlé šípy",{"$f":"DATE(YEAR(TODAY()),2,17)","v":"2018-02-17"},{"$f":"DATE(YEAR(TODAY()),2,25)","v":"2018-02-25"},{"$f":"IFERROR(IF(Knihy[[#This Row],[DATUM VRÁCENÍ]]=\"\",IF(Knihy[[#This Row],[DATUM VYPŮJČENÍ]]<>\"\", TODAY()-Knihy[[#This Row],[DATUM VYPŮJČENÍ]],\"\"),Knihy[[#This Row],[DATUM VRÁCENÍ]]-Knihy[[#This Row],[DATUM VYPŮJČENÍ]]), \"\")","v":8}]
[{"$f":"IFERROR(((Knihy[[#This Row],[DATUM VYPŮJČENÍ]]+PočetDnů)<TODAY())*(LEN(Knihy[[#This Row],[DATUM VRÁCENÍ]])=0)*(LEN(Knihy[[#This Row],[DATUM VYPŮJČENÍ]])>0),0)","v":0},"Lenka Šťastná","adresa@example.com","555 010 400","Matylda",{"$f":"DATE(YEAR(TODAY()),2,18)","v":"2018-02-18"},{"$f":"DATE(YEAR(TODAY()),2,28)","v":"2018-02-28"},{"$f":"IFERROR(IF(Knihy[[#This Row],[DATUM VRÁCENÍ]]=\"\",IF(Knihy[[#This Row],[DATUM VYPŮJČENÍ]]<>\"\", TODAY()-Knihy[[#This Row],[DATUM VYPŮJČENÍ]],\"\"),Knihy[[#This Row],[DATUM VRÁCENÍ]]-Knihy[[#This Row],[DATUM VYPŮJČENÍ]]), \"\")","v":10}]
[{"$f":"IFERROR(((Knihy[[#This Row],[DATUM VYPŮJČENÍ]]+PočetDnů)<TODAY())*(LEN(Knihy[[#This Row],[DATUM VRÁCENÍ]])=0)*(LEN(Knihy[[#This Row],[DATUM VYPŮJČENÍ]])>0),0)","v":1},"Alena Valentová","adresa@example.com","555 010 500","Letopisy Narnie",{"$f":"DATE(YEAR(TODAY()),1,23)","v":"2018-01-23"},null,{"$f":"IFERROR(IF(Knihy[[#This Row],[DATUM VRÁCENÍ]]=\"\",IF(Knihy[[#This Row],[DATUM VYPŮJČENÍ]]<>\"\", TODAY()-Knihy[[#This Row],[DATUM VYPŮJČENÍ]],\"\"),Knihy[[#This Row],[DATUM VRÁCENÍ]]-Knihy[[#This Row],[DATUM VYPŮJČENÍ]]), \"\")","v":163}]
[{"$f":"IFERROR(((Knihy[[#This Row],[DATUM VYPŮJČENÍ]]+PočetDnů)<TODAY())*(LEN(Knihy[[#This Row],[DATUM VRÁCENÍ]])=0)*(LEN(Knihy[[#This Row],[DATUM VYPŮJČENÍ]])>0),0)","v":0},"Jaroslava Burešová","adresa@example.com","555 010 600","Alenka v říši divů",{"$f":"TODAY()","v":"2018-07-05"},null,{"$f":"IFERROR(IF(Knihy[[#This Row],[DATUM VRÁCENÍ]]=\"\",IF(Knihy[[#This Row],[DATUM VYPŮJČENÍ]]<>\"\", TODAY()-Knihy[[#This Row],[DATUM VYPŮJČENÍ]],\"\"),Knihy[[#This Row],[DATUM VRÁCENÍ]]-Knihy[[#This Row],[DATUM VYPŮJČENÍ]]), \"\")","v":0}]